Workbook

Sheet Calculations

Sheet Results

Sheet Sample Fire Curves
A1: Parametric | G1: ISO 834 | K1: ASTM E119
A2: Burning Duration (hours) | C2: 0.5 | G2: time step (minutes) | H2: Time (seconds) | I2: Time (minutes) | J2: Temperature (Celsius) | K2: time step (minutes) | L2: Time (hours) | M2: Time (seconds) | N2: Temperature (Celsius)
A3: Time (seconds) | B3: Time (hours) | C3: T (Heating) | D3: T (Cooling) | E3: T (Ambient) | F3: Temperature Complete (Celsius) | G3: 1 | H3: =60*I3 -> 0 | I3: 0 | J3: 20 | K3: 1 | L3: 0 | M3: =L3/3600 -> 0 | N3: 20
A4: =B4*3600 -> 0 | B4: 0 | C4: 20 | D4: =IF($B$4<$C$2,0,IF($C$2<0.5,MAX(C4:C14)-625*(B4-$C$2))) -> 0 | E4: =IF(D4<20,20,D4) -> 20 | F4: =IF(B4<=$C$2,C4,E4) -> 20 | H4: 60 | I4: =I3+$G$3 -> 1 | J4: =345*LOG(8*I4+1)+$J$3 -> 349.2136658 | L4: =M4/3600 -> 0.01666666667 | M4: =M3+$K$3*60 -> 60 | N4: =750*(1-EXP(-3.79553*(L4^0.5)))+170.41*(L4^0.5)+$N$3 -> 332.5304157
A5: =B5*3600 -> 180 | B5: =($B$14-$B$4)/10+B4 -> 0.05 | C5: =1325*(1-0.324*EXP(-0.2*B5)-0.204*EXP(-1.7*B5)-0.472*EXP(-10*B5)) -> 272.3734613 | D5: 0 | E5: =IF(D5<20,20,D5) -> 20 | F5: 272.3734613 | H5: 120 | I5: 2 | J5: 444.5048779 | L5: =M5/3600 -> 0.03333333333 | M5: =M4+$K$3*60 -> 120 | N5: =750*(1-EXP(-3.79553*(L5^0.5)))+170.41*(L5^0.5)+$N$3 -> 426.044443
A6: 360 | B6: 0.1 | C6: =1325*(1-0.324*EXP(-0.2*B6)-0.204*EXP(-1.7*B6)-0.472*EXP(-10*B6)) -> 446.0863071 | D6: 0 | E6: 20 | F6: 446.0863071 | H6: 180 | I6: 3 | J6: 502.289303 | L6: 0.05 | M6: 180 | N6: 487.12866
A7: 540 | B7: 0.15 | C7: 559.3822009 | D7: 0 | E7: 20 | F7: 559.3822009 | H7: 240 | I7: 4 | J7: 543.8873093 | L7: 0.06666666667 | M7: 240 | N7: 532.516808
A8: 720 | B8: 0.2 | C8: 635.5028894 | D8: 0 | E8: 20 | F8: 635.5028894 | H8: 300 | I8: 5 | J8: 576.4104306 | L8: 0.08333333333 | M8: 300 | N8: 568.4577615
A9: 900 | B9: 0.25 | C9: 688.587277 | D9: 0 | E9: 20 | F9: 688.587277 | H9: 360 | I9: 6 | J9: 603.1176476 | L9: 0.1 | M9: 360 | N9: 598.0496271
A10: 1080 | B10: 0.3 | C10: 727.2496982 | D10: 0 | E10: 20 | F10: 727.2496982 | H10: 420 | I10: 7 | J10: 625.7768252 | L10: 0.1166666667 | M10: 420 | N10: 623.0742538
A11: 1260 | B11: 0.35 | C11: 756.750528 | D11: 0 | E11: 20 | F11: 756.750528 | H11: 480 | I11: 8 | J11: 645.455108 | L11: 0.1333333333 | M11: 480 | N11: 644.6569038
A12: 1440 | B12: 0.4 | C12: 780.3129789 | D12: 0 | E12: 20 | F12: 780.3129789 | H12: 540 | I12: 9 | J12: 662.8463867 | L12: 0.15 | M12: 540 | N12: 663.5558175
A13: 1620 | B13: 0.45 | C13: 799.9220142 | D13: 0 | E13: 20 | F13: 799.9220142 | H13: 600 | I13: 10 | J13: 678.4273315 | L13: 0.1666666667 | M13: 600 | N13: 680.3069656
A14: 1800 | B14: =C2 -> 0.5 | C14: 816.8091283 | D14: 0 | E14: 20 | F14: 816.8091283 | H14: 660 | I14: 11 | J14: 692.5395523 | L14: 0.1833333333 | M14: 660 | N14: 695.303428
A15: 1980 | B15: =($B$14-$B$4)/10+B14 -> 0.55 | C15: 831.7465794 | D15: =IF(B15<$C$2,0,IF($C$2<0.5,MAX($C$4:$C$14)-625*(B15-$C$2),IF($C$2>2,MAX($C$4:$C$14)-250*(B15-$C$2),MAX($C$4:$C$14)-250*(B15-$C$2)*(3-$C$2)))) -> 785.5591283 | E15: 785.5591283 | F15: 785.5591283 | H15: 720 | I15: 12 | J15: 705.4362483 | L15: 0.2 | M15: 720 | N15: 708.8420627
A16: 2160 | B16: 0.6 | C16: 845.2260326 | D16: 754.3091283 | E16: 754.3091283 | F16: 754.3091283 | H16: 780 | I16: 13 | J16: 717.3103082 | L16: 0.2166666667 | M16: 780 | N16: 721.1524826
A17: 2340 | B17: 0.65 | C17: 857.5670792 | D17: 723.0591283 | E17: 723.0591283 | F17: 723.0591283 | H17: 840 | I17: 14 | J17: 728.312063 | L17: 0.2333333333 | M17: 840 | N17: 732.4158538
A18: 2520 | B18: 0.7 | C18: 868.9832109 | D18: 691.8091283 | E18: 691.8091283 | F18: 691.8091283 | H18: 900 | I18: 15 | J18: 738.5609528 | L18: 0.25 | M18: 900 | N18: 742.7775408
A19: 2700 | B19: 0.75 | C19: 879.621976 | D19: 660.5591283 | E19: 660.5591283 | F19: 660.5591283 | H19: 960 | I19: 16 | J19: 748.1534501 | L19: 0.2666666667 | M19: 960 | N19: 752.3558747
A20: 2880 | B20: 0.8 | C20: 889.5894651 | D20: 629.3091283 | E20: 629.3091283 | F20: 629.3091283 | H20: 1020 | I20: 17 | J20: 757.1685957 | L20: 0.2833333333 | M20: 1020 | N20: 761.248392
A21: 3060 | B21: 0.85 | C21: 898.9652806 | D21: 598.0591283 | E21: 598.0591283 | F21: 598.0591283 | H21: 1080 | I21: 18 | J21: 765.6719608 | L21: 0.3 | M21: 1080 | N21: 769.5363737
A22: 3240 | B22: 0.9 | C22: 907.8117269 | D22: 566.8091283 | E22: 566.8091283 | F22: 566.8091283 | H22: 1140 | I22: 19 | J22: 773.7185436 | L22: 0.3166666667 | M22: 1140 | N22: 777.2882137
A23: 3420 | B23: 0.95 | C23: 916.1794832 | D23: 535.5591283 | E23: 535.5591283 | F23: 535.5591283 | H23: 1200 | I23: 20 | J23: 781.3549272 | L23: 0.3333333333 | M23: 1200 | N23: 784.5619596
A24: 3600 | B24: 1 | C24: 924.111138 | D24: 504.3091283 | E24: 504.3091283 | F24: 504.3091283 | H24: 1260 | I24: 21 | J24: 788.6209131 | L24: 0.35 | M24: 1260 | N24: 791.4072598
A25: 3780 | B25: 1.05 | C25: 931.6434163 | D25: 473.0591283 | E25: 473.0591283 | F25: 473.0591283 | H25: 1320 | I25: 22 | J25: 795.5507769 | L25: 0.3666666667 | M25: 1320 | N25: 797.8668765
A26: 3960 | B26: 1.1 | C26: 938.808609 | D26: 441.8091283 | E26: 441.8091283 | F26: 441.8091283 | H26: 1380 | I26: 23 | J26: 802.1742463 | L26: 0.3833333333 | M26: 1380 | N26: 803.9778734
A27: 4140 | B27: 1.15 | C27: 945.635511 | D27: 410.5591283 | E27: 410.5591283 | F27: 410.5591283 | H27: 1440 | I27: 24 | J27: 808.5172716 | L27: 0.4 | M27: 1440 | N27: 809.7725613
A28: 4320 | B28: 1.2 | C28: 952.1500561 | D28: 379.3091283 | E28: 379.3091283 | F28: 379.3091283 | H28: 1500 | I28: 25 | J28: 814.6026398 | L28: 0.4166666667 | M28: 1500 | N28: 815.2792562
A29: 4500 | B29: 1.25 | C29: 958.3757619 | D29: 348.0591283 | E29: 348.0591283 | F29: 348.0591283 | H29: 1560 | I29: 26 | J29: 820.4504687 | L29: 0.4333333333 | M29: 1560 | N29: 820.5228938
A30: 4680 | B30: 1.3 | C30: 964.3340553 | D30: 316.8091283 | E30: 316.8091283 | F30: 316.8091283 | H30: 1620 | I30: 27 | J30: 826.0786082 | L30: 0.45 | M30: 1620 | N30: 825.5255316
A31: 4860 | B31: 1.35 | C31: 970.0445211 | D31: 285.5591283 | E31: 285.5591283 | F31: 285.5591283 | H31: 1680 | I31: 28 | J31: 831.5029687 | L31: 0.4666666667 | M31: 1680 | N31: 830.3067617
A32: 5040 | B32: 1.4 | C32: 975.5250987 | D32: 254.3091283 | E32: 254.3091283 | F32: 254.3091283 | H32: 1740 | I32: 29 | J32: 836.7377928 | L32: 0.4833333333 | M32: 1740 | N32: 834.8840538
A33: 5220 | B33: 1.45 | C33: 980.7922449 | D33: 223.0591283 | E33: 223.0591283 | F33: 223.0591283 | H33: 1800 | I33: 30 | J33: 841.7958797 | L33: 0.5 | M33: 1800 | N33: 839.2730404
A34: 5400 | B34: 1.5 | C34: 985.8610722 | D34: 191.8091283 | E34: 191.8091283 | F34: 191.8091283 | H34: 1860 | I34: 31 | J34: 846.6887747 | L34: 0.5166666667 | M34: 1860 | N34: 843.4877575
A35: 5580 | B35: 1.55 | C35: 990.7454682 | D35: 160.5591283 | E35: 160.5591283 | F35: 160.5591283 | H35: 1920 | I35: 32 | J35: 851.4269275 | L35: 0.5333333333 | M35: 1920 | N35: 847.5408468
A36: 5760 | B36: 1.6 | C36: 995.4582019 | D36: 129.3091283 | E36: 129.3091283 | F36: =IF(B36<=$C$2,C36,E36) -> 129.3091283 | H36: 1980 | I36: 33 | J36: 856.0198265 | L36: 0.55 | M36: 1980 | N36: 851.4437275
A37: 5940 | B37: 1.65 | C37: 1000.011018 | D37: 98.05912828 | E37: 98.05912828 | F37: 98.05912828 | H37: 2040 | I37: 34 | J37: 860.4761132 | L37: 0.5666666667 | M37: 2040 | N37: 855.2067436
A38: 6120 | B38: 1.7 | C38: 1004.414724 | D38: 66.80912828 | E38: 66.80912828 | F38: 66.80912828 | H38: 2100 | I38: 35 | J38: 864.8036804 | L38: 0.5833333333 | M38: 2100 | N38: 858.8392889
A39: 6300 | B39: 1.75 | C39: 1008.679266 | D39: 35.55912828 | E39: 35.55912828 | F39: 35.55912828 | H39: 2160 | I39: 36 | J39: 869.0097558 | L39: 0.6 | M39: 2160 | N39: 862.349916
A40: 6480 | B40: 1.8 | C40: 1012.8138 | D40: 4.309128278 | E40: 20 | F40: 20 | H40: 2220 | I40: 37 | J40: 873.100975 | L40: 0.6166666667 | M40: 2220 | N40: 865.746429
A41: 6660 | B41: 1.85 | C41: 1016.826757 | D41: -26.94087172 | E41: 20 | F41: 20 | H41: 2280 | I41: 38 | J41: 877.0834446 | L41: 0.6333333333 | M41: 2280 | N41: 869.0359653
A42: 6840 | B42: 1.9 | C42: 1020.725902 | D42: -58.19087172 | E42: 20 | F42: 20 | H42: 2340 | I42: 39 | J42: 880.9627965 | L42: 0.65 | M42: 2340 | N42: 872.2250658
A43: 7020 | B43: 1.95 | C43: 1024.518388 | D43: -89.44087172 | E43: 20 | F43: 20 | H43: 2400 | I43: 40 | J43: 884.7442362 | L43: 0.6666666667 | M43: 2400 | N43: 875.3197372
A44: 7200 | B44: 2 | C44: 1028.210808 | D44: -120.6908717 | E44: 20 | F44: 20 | H44: 2460 | I44: 41 | J44: 888.4325848 | L44: 0.6833333333 | M44: 2460 | N44: 878.3255053
A45: 7380 | B45: 2.05 | C45: 1031.809236 | D45: -151.9408717 | E45: 20 | F45: 20 | H45: 2520 | I45: 42 | J45: 892.0323158 | L45: 0.7 | M45: 2520 | N45: 881.2474635
A46: 7560 | B46: 2.1 | C46: 1035.319273 | D46: -183.1908717 | E46: 20 | F46: 20 | H46: 2580 | I46: 43 | J46: 895.5475878 | L46: 0.7166666667 | M46: 2580 | N46: 884.0903142
A47: 7740 | B47: =($B$14-$B$4)/10+B46 -> 2.15 | C47: 1038.746083 | D47: =IF(B47<$C$2,0,IF($C$2<0.5,MAX($C$4:$C$14)-625*(B47-$C$2),IF($C$2>2,MAX($C$4:$C$14)-250*(B47-$C$2),MAX($C$4:$C$14)-250*(B47-$C$2)*(3-$C$2)))) -> -214.4408717 | E47: 20 | F47: 20 | H47: 2640 | I47: 44 | J47: 898.9822734 | L47: 0.7333333333 | M47: 2640 | N47: 886.8584059
A48: 7920 | B48: 2.2 | C48: 1042.09443 | D48: -245.6908717 | E48: 20 | F48: 20 | H48: 2700 | I48: 45 | J48: 902.3399847 | L48: 0.75 | M48: 2700 | N48: 889.5557668
A49: 8100 | B49: 2.25 | C49: 1045.368711 | D49: -276.9408717 | E49: 20 | F49: 20 | H49: 2760 | I49: 46 | J49: 905.6240963 | L49: 0.7666666667 | M49: 2760 | N49: 892.1861333
A50: 8280 | B50: 2.3 | C50: 1048.572983 | D50: -308.1908717 | E50: 20 | F50: 20 | H50: 2820 | I50: 47 | J50: 908.8377658 | L50: 0.7833333333 | M50: 2820 | N50: 894.7529764
A51: 8460 | B51: 2.35 | C51: 1051.710993 | D51: -339.4408717 | E51: 20 | F51: 20 | H51: 2880 | I51: 48 | J51: 911.9839517 | L51: 0.8 | M51: 2880 | N51: 897.2595254
A52: 8640 | B52: 2.4 | C52: 1054.786202 | D52: -370.6908717 | E52: 20 | F52: 20 | H52: 2940 | I52: 49 | J52: 915.0654299 | L52: 0.8166666667 | M52: 2940 | N52: 899.708788
A53: 8820 | B53: 2.45 | C53: 1057.801807 | D53: -401.9408717 | E53: 20 | F53: 20 | H53: 3000 | I53: 50 | J53: 918.0848086 | L53: 0.8333333333 | M53: 3000 | N53: 902.1035698
A54: 9000 | B54: 2.5 | C54: 1060.760765 | D54: -433.1908717 | E54: 20 | F54: 20 | H54: 3060 | I54: 51 | J54: 921.0445413 | L54: 0.85 | M54: 3060 | N54: 904.4464908
A55: 9180 | B55: 2.55 | C55: 1063.665811 | D55: -464.4408717 | E55: 20 | F55: 20 | H55: 3120 | I55: 52 | J55: 923.946939 | L55: 0.8666666667 | M55: 3120 | N55: 906.7400006
A56: 9360 | B56: 2.6 | C56: 1066.519476 | D56: -495.6908717 | E56: 20 | F56: 20 | H56: 3180 | I56: 53 | J56: 926.7941809 | L56: 0.8833333333 | M56: 3180 | N56: 908.9863921
A57: 9540 | B57: 2.65 | C57: 1069.324101 | D57: -526.9408717 | E57: 20 | F57: 20 | H57: 3240 | I57: 54 | J57: 929.5883242 | L57: 0.9 | M57: 3240 | N57: 911.187814
A58: 9720 | B58: 2.7 | C58: 1072.081858 | D58: -558.1908717 | E58: 20 | F58: 20 | H58: 3300 | I58: 55 | J58: 932.3313134 | L58: 0.9166666667 | M58: 3300 | N58: 913.3462819
A59: 9900 | B59: 2.75 | C59: 1074.794757 | D59: -589.4408717 | E59: 20 | F59: 20 | H59: 3360 | I59: 56 | J59: 935.0249876 | L59: 0.9333333333 | M59: 3360 | N59: 915.4636885
A60: 10080 | B60: 2.8 | C60: 1077.464665 | D60: -620.6908717 | E60: 20 | F60: 20 | H60: 3420 | I60: 57 | J60: 937.671089 | L60: 0.95 | M60: 3420 | N60: 917.5418131
A61: 10260 | B61: 2.85 | C61: 1080.093312 | D61: -651.9408717 | E61: 20 | F61: 20 | H61: 3480 | I61: 58 | J61: 940.2712687 | L61: 0.9666666667 | M61: 3480 | N61: 919.5823298
A62: 10440 | B62: 2.9 | C62: 1082.682307 | D62: -683.1908717 | E62: 20 | F62: 20 | H62: 3540 | I62: 59 | J62: 942.8270936 | L62: 0.9833333333 | M62: 3540 | N62: 921.5868151
A63: 10620 | B63: 2.95 | C63: 1085.233145 | D63: -714.4408717 | E63: 20 | F63: 20 | H63: 3600 | I63: 60 | J63: 945.3400513 | L63: 1 | M63: 3600 | N63: 923.5567552
A64: 10800 | B64: 3 | C64: 1087.747214 | D64: -745.6908717 | E64: 20 | F64: 20 | H64: 3660 | I64: 61 | J64: 947.8115564 | L64: 1.016666667 | M64: 3660 | N64: 925.4935524
A65: 10980 | B65: 3.05 | C65: 1090.225809 | D65: -776.9408717 | E65: 20 | F65: 20 | H65: 3720 | I65: 62 | J65: 950.2429541 | L65: 1.033333333 | M65: 3720 | N65: 927.3985305
A66: 11160 | B66: 3.1 | C66: 1092.670135 | D66: -808.1908717 | E66: 20 | F66: 20 | H66: 3780 | I66: 63 | J66: 952.6355255 | L66: 1.05 | M66: 3780 | N66: 929.272941
A67: 11340 | B67: 3.15 | C67: 1095.081316 | D67: -839.4408717 | E67: 20 | F67: 20 | H67: =60*I67 -> 3840 | I67: 64 | J67: 954.990491 | L67: 1.066666667 | M67: 3840 | N67: 931.1179673
A68: 11520 | B68: 3.2 | C68: 1097.4604 | D68: -870.6908717 | E68: 20 | F68: =IF(B68<=$C$2,C68,E68) -> 20 | H68: 3900 | I68: =I67+$G$3 -> 65 | J68: =345*LOG(8*I68+1)+$J$3 -> 957.3090145 | L68: 1.083333333 | M68: 3900 | N68: 932.9347297
A69: =B69*3600 -> 11700 | B69: 3.25 | C69: 1099.808368 | D69: -901.9408717 | E69: =IF(D69<20,20,D69) -> 20 | F69: 20 | H69: 3960 | I69: 66 | J69: 959.5922069 | L69: =M69/3600 -> 1.1 | M69: =M68+$K$3*60 -> 3960 | N69: =750*(1-EXP(-3.79553*(L69^0.5)))+170.41*(L69^0.5)+$N$3 -> 934.7242894
A70: 11880 | B70: 3.3 | C70: =1325*(1-0.324*EXP(-0.2*B70)-0.204*EXP(-1.7*B70)-0.472*EXP(-10*B70)) -> 1102.126135 | D70: -933.1908717 | E70: 20 | F70: 20 | H70: 4020 | I70: 67 | J70: 961.8411286 | L70: 1.116666667 | M70: 4020 | N70: 936.4876525
A71: 12060 | B71: 3.35 | C71: 1104.41456 | D71: -964.4408717 | E71: 20 | F71: 20 | H71: 4080 | I71: 68 | J71: 964.0567933 | L71: 1.133333333 | M71: 4080 | N71: 938.2257733
A72: 12240 | B72: 3.4 | C72: 1106.674445 | D72: -995.6908717 | E72: 20 | F72: 20 | H72: 4140 | I72: 69 | J72: 966.2401703 | L72: 1.15 | M72: 4140 | N72: 939.9395579
A73: 12420 | B73: 3.45 | C73: 1108.906546 | D73: -1026.940872 | E73: 20 | F73: 20 | H73: 4200 | I73: 70 | J73: 968.3921871 | L73: 1.166666667 | M73: 4200 | N73: 941.629867
A74: 12600 | B74: 3.5 | C74: 1111.11157 | D74: -1058.190872 | E74: 20 | F74: 20 | H74: 4260 | I74: 71 | J74: 970.5137319 | L74: 1.183333333 | M74: 4260 | N74: 943.2975188
A75: 12780 | B75: 3.55 | C75: 1113.290184 | D75: -1089.440872 | E75: 20 | F75: 20 | H75: 4320 | I75: 72 | J75: 972.6056555 | L75: 1.2 | M75: 4320 | N75: 944.9432918
A76: 12960 | B76: 3.6 | C76: 1115.443014 | D76: -1120.690872 | E76: 20 | F76: 20 | H76: 4380 | I76: 73 | J76: 974.6687738 | L76: 1.216666667 | M76: 4380 | N76: 946.5679266
A77: 13140 | B77: 3.65 | C77: 1117.570651 | D77: -1151.940872 | E77: 20 | F77: 20 | H77: 4440 | I77: 74 | J77: 976.7038692 | L77: 1.233333333 | M77: 4440 | N77: 948.1721291
A78: 13320 | B78: 3.7 | C78: 1119.673654 | D78: -1183.190872 | E78: 20 | F78: 20 | H78: 4500 | I78: 75 | J78: 978.7116928 | L78: 1.25 | M78: 4500 | N78: 949.7565716
A79: 13500 | B79: =($B$14-$B$4)/10+B78 -> 3.75 | C79: 1121.75255 | D79: =IF(B79<$C$2,0,IF($C$2<0.5,MAX($C$4:$C$14)-625*(B79-$C$2),IF($C$2>2,MAX($C$4:$C$14)-250*(B79-$C$2),MAX($C$4:$C$14)-250*(B79-$C$2)*(3-$C$2)))) -> -1214.440872 | E79: 20 | F79: 20 | H79: 4560 | I79: 76 | J79: 980.692966 | L79: 1.266666667 | M79: 4560 | N79: 951.3218955
A80: 13680 | B80: 3.8 | C80: 1123.807839 | D80: -1245.690872 | E80: 20 | F80: 20 | H80: 4620 | I80: 77 | J80: 982.6483816 | L80: 1.283333333 | M80: 4620 | N80: 952.8687125
A81: 13860 | B81: 3.85 | C81: 1125.839992 | D81: -1276.940872 | E81: 20 | F81: 20 | H81: 4680 | I81: 78 | J81: 984.578606 | L81: 1.3 | M81: 4680 | N81: 954.3976068
A82: 14040 | B82: 3.9 | C82: 1127.849459 | D82: -1308.190872 | E82: 20 | F82: 20 | H82: 4740 | I82: 79 | J82: 986.48428 | L82: 1.316666667 | M82: 4740 | N82: 955.9091364
A83: 14220 | B83: 3.95 | C83: 1129.836667 | D83: -1339.440872 | E83: 20 | F83: 20 | H83: 4800 | I83: 80 | J83: 988.3660202 | L83: 1.333333333 | M83: 4800 | N83: 957.4038344
A84: 14400 | B84: 4 | C84: 1131.802022 | D84: -1370.690872 | E84: 20 | F84: 20 | H84: 4860 | I84: 81 | J84: 990.2244204 | L84: 1.35 | M84: 4860 | N84: 958.8822108
A85: 14580 | B85: 4.05 | C85: 1133.745911 | D85: -1401.940872 | E85: 20 | F85: 20 | H85: 4920 | I85: 82 | J85: 992.0600525 | L85: 1.366666667 | M85: 4920 | N85: 960.3447534
A86: 14760 | B86: 4.1 | C86: 1135.668703 | D86: -1433.190872 | E86: 20 | F86: 20 | H86: 4980 | I86: 83 | J86: 993.8734676 | L86: 1.383333333 | M86: 4980 | N86: 961.7919291
A87: 14940 | B87: 4.15 | C87: 1137.57075 | D87: -1464.440872 | E87: 20 | F87: 20 | H87: 5040 | I87: 84 | J87: 995.6651972 | L87: 1.4 | M87: 5040 | N87: 963.224185
A88: 15120 | B88: 4.2 | C88: 1139.452391 | D88: -1495.690872 | E88: 20 | F88: 20 | H88: 5100 | I88: 85 | J88: 997.4357536 | L88: 1.416666667 | M88: 5100 | N88: 964.6419498
A89: 15300 | B89: 4.25 | C89: 1141.31395 | D89: -1526.940872 | E89: 20 | F89: 20 | H89: 5160 | I89: 86 | J89: 999.1856316 | L89: 1.433333333 | M89: 5160 | N89: 966.0456339
A90: 15480 | B90: 4.3 | C90: 1143.155737 | D90: -1558.190872 | E90: 20 | F90: 20 | H90: 5220 | I90: 87 | J90: 1000.915308 | L90: 1.45 | M90: 5220 | N90: 967.4356315
A91: 15660 | B91: 4.35 | C91: 1144.97805 | D91: -1589.440872 | E91: 20 | F91: 20 | H91: 5280 | I91: 88 | J91: 1002.625245 | L91: 1.466666667 | M91: 5280 | N91: 968.8123203
A92: 15840 | B92: 4.4 | C92: 1146.781177 | D92: -1620.690872 | E92: 20 | F92: 20 | H92: 5340 | I92: 89 | J92: 1004.315888 | L92: 1.483333333 | M92: 5340 | N92: 970.1760633
A93: 16020 | B93: 4.45 | C93: 1148.565395 | D93: -1651.940872 | E93: 20 | F93: 20 | H93: 5400 | I93: 90 | J93: 1005.987666 | L93: 1.5 | M93: 5400 | N93: 971.5272087
A94: 16200 | B94: 4.5 | C94: 1150.33097 | D94: -1683.190872 | E94: 20 | F94: 20 | H94: 5460 | I94: 91 | J94: 1007.640997 | L94: 1.516666667 | M94: 5460 | N94: 972.8660913
A95: 16380 | B95: 4.55 | C95: 1152.078161 | D95: -1714.440872 | E95: 20 | F95: 20 | H95: 5520 | I95: 92 | J95: 1009.276283 | L95: 1.533333333 | M95: 5520 | N95: 974.1930328
A96: 16560 | B96: 4.6 | C96: 1153.807217 | D96: -1745.690872 | E96: 20 | F96: 20 | H96: 5580 | I96: 93 | J96: 1010.893914 | L96: 1.55 | M96: 5580 | N96: 975.5083426
A97: 16740 | B97: 4.65 | C97: 1155.51838 | D97: -1776.940872 | E97: 20 | F97: 20 | H97: 5640 | I97: 94 | J97: 1012.494267 | L97: 1.566666667 | M97: 5640 | N97: 976.8123183
A98: 16920 | B98: 4.7 | C98: 1157.211883 | D98: -1808.190872 | E98: 20 | F98: 20 | H98: 5700 | I98: 95 | J98: 1014.077707 | L98: 1.583333333 | M98: 5700 | N98: 978.1052462
A99: 17100 | B99: 4.75 | C99: 1158.887955 | D99: -1839.440872 | E99: 20 | F99: 20 | H99: 5760 | I99: 96 | J99: 1015.644587 | L99: 1.6 | M99: 5760 | N99: 979.387402
A100: 17280 | B100: 4.8 | C100: 1160.546815 | D100: -1870.690872 | E100: 20 | F100: =IF(B100<=$C$2,C100,E100) -> 20 | H100: 5820 | I100: 97 | J100: 1017.195251 | L100: 1.616666667 | M100: 5820 | N100: 980.6590513
A101: 17460 | B101: 4.85 | C101: 1162.18868 | D101: -1901.940872 | E101: 20 | F101: 20 | H101: 5880 | I101: 98 | J101: 1018.730032 | L101: 1.633333333 | M101: 5880 | N101: 981.9204499
A102: 17640 | B102: 4.9 | C102: 1163.813756 | D102: -1933.190872 | E102: 20 | F102: 20 | H102: 5940 | I102: 99 | J102: 1020.24925 | L102: 1.65 | M102: 5940 | N102: 983.1718443
A103: 17820 | B103: 4.95 | C103: 1165.42225 | D103: -1964.440872 | E103: 20 | F103: 20 | H103: 6000 | I103: 100 | J103: 1021.753218 | L103: 1.666666667 | M103: 6000 | N103: 984.4134723
A104: 18000 | B104: 5 | C104: 1167.014358 | D104: -1995.690872 | E104: 20 | F104: 20 | H104: 6060 | I104: 101 | J104: 1023.24224 | L104: 1.683333333 | M104: 6060 | N104: 985.6455631
A105: 18180 | B105: 5.05 | C105: 1168.590276 | D105: -2026.940872 | E105: 20 | F105: 20 | H105: 6120 | I105: 102 | J105: 1024.71661 | L105: 1.7 | M105: 6120 | N105: 986.8683381
A106: 18360 | B106: 5.1 | C106: 1170.150193 | D106: -2058.190872 | E106: 20 | F106: 20 | H106: 6180 | I106: 103 | J106: 1026.176612 | L106: 1.716666667 | M106: 6180 | N106: 988.0820108
A107: 18540 | B107: 5.15 | C107: 1171.694293 | D107: -2089.440872 | E107: 20 | F107: 20 | H107: 6240 | I107: 104 | J107: 1027.622525 | L107: 1.733333333 | M107: 6240 | N107: 989.2867873
A108: 18720 | B108: 5.2 | C108: 1173.222759 | D108: -2120.690872 | E108: 20 | F108: 20 | H108: 6300 | I108: 105 | J108: 1029.054619 | L108: 1.75 | M108: 6300 | N108: 990.4828668
A109: 18900 | B109: 5.25 | C109: 1174.735769 | D109: -2151.940872 | E109: 20 | F109: 20 | H109: 6360 | I109: 106 | J109: 1030.473153 | L109: 1.766666667 | M109: 6360 | N109: 991.6704417
A110: 19080 | B110: 5.3 | C110: 1176.233495 | D110: -2183.190872 | E110: 20 | F110: 20 | H110: 6420 | I110: 107 | J110: 1031.878384 | L110: 1.783333333 | M110: 6420 | N110: 992.849698
A111: 19260 | B111: =($B$14-$B$4)/10+B110 -> 5.35 | C111: 1177.716109 | D111: =IF(B111<$C$2,0,IF($C$2<0.5,MAX($C$4:$C$14)-625*(B111-$C$2),IF($C$2>2,MAX($C$4:$C$14)-250*(B111-$C$2),MAX($C$4:$C$14)-250*(B111-$C$2)*(3-$C$2)))) -> -2214.440872 | E111: 20 | F111: 20 | H111: 6480 | I111: 108 | J111: 1033.270557 | L111: 1.8 | M111: 6480 | N111: 994.0208155
A112: 19440 | B112: 5.4 | C112: 1179.183778 | D112: -2245.690872 | E112: 20 | F112: 20 | H112: 6540 | I112: 109 | J112: 1034.649914 | L112: 1.816666667 | M112: 6540 | N112: 995.1839681
A113: 19620 | B113: 5.45 | C113: 1180.636667 | D113: -2276.940872 | E113: 20 | F113: 20 | H113: 6600 | I113: 110 | J113: 1036.016688 | L113: 1.833333333 | M113: 6600 | N113: 996.339324
A114: 19800 | B114: 5.5 | C114: 1182.074937 | D114: -2308.190872 | E114: 20 | F114: 20 | H114: 6660 | I114: 111 | J114: 1037.371108 | L114: 1.85 | M114: 6660 | N114: 997.4870459
A115: 19980 | B115: 5.55 | C115: 1183.498747 | D115: -2339.440872 | E115: 20 | F115: 20 | H115: 6720 | I115: 112 | J115: 1038.713393 | L115: 1.866666667 | M115: 6720 | N115: 998.6272916
A116: 20160 | B116: 5.6 | C116: 1184.908252 | D116: -2370.690872 | E116: 20 | F116: 20 | H116: 6780 | I116: 113 | J116: 1040.04376 | L116: 1.883333333 | M116: 6780 | N116: 999.7602136
A117: 20340 | B117: 5.65 | C117: 1186.303607 | D117: -2401.940872 | E117: 20 | F117: 20 | H117: 6840 | I117: 114 | J117: 1041.362418 | L117: 1.9 | M117: 6840 | N117: 1000.88596
A118: 20520 | B118: 5.7 | C118: 1187.684963 | D118: -2433.190872 | E118: 20 | F118: 20 | H118: 6900 | I118: 115 | J118: 1042.669572 | L118: 1.916666667 | M118: 6900 | N118: 1002.004673
A119: 20700 | B119: 5.75 | C119: 1189.052467 | D119: -2464.440872 | E119: 20 | F119: 20 | H119: 6960 | I119: 116 | J119: 1043.965421 | L119: 1.933333333 | M119: 6960 | N119: 1003.116492
A120: 20880 | B120: 5.8 | C120: 1190.406267 | D120: -2495.690872 | E120: 20 | F120: 20 | H120: 7020 | I120: 117 | J120: 1045.250159 | L120: 1.95 | M120: 7020 | N120: 1004.221553
A121: 21060 | B121: 5.85 | C121: 1191.746507 | D121: -2526.940872 | E121: 20 | F121: 20 | H121: 7080 | I121: 118 | J121: 1046.523974 | L121: 1.966666667 | M121: 7080 | N121: 1005.319984
A122: 21240 | B122: 5.9 | C122: 1193.073329 | D122: -2558.190872 | E122: 20 | F122: 20 | H122: 7140 | I122: 119 | J122: 1047.787051 | L122: 1.983333333 | M122: 7140 | N122: 1006.411913
A123: 21420 | B123: 5.95 | C123: 1194.386873 | D123: -2589.440872 | E123: 20 | F123: 20 | H123: 7200 | I123: 120 | J123: 1049.039569 | L123: 2 | M123: 7200 | N123: 1007.497462
A124: 21600 | B124: 6 | C124: 1195.687278 | D124: -2620.690872 | E124: 20 | F124: 20 | H124: 7260 | I124: 121 | J124: 1050.281703 | L124: 2.016666667 | M124: 7260 | N124: 1008.576751
A125: 21780 | B125: 6.05 | C125: 1196.97468 | D125: -2651.940872 | E125: 20 | F125: 20 | H125: 7320 | I125: 122 | J125: 1051.513624 | L125: 2.033333333 | M125: 7320 | N125: 1009.649895
A126: 21960 | B126: 6.1 | C126: 1198.249213 | D126: -2683.190872 | E126: 20 | F126: 20 | H126: 7380 | I126: 123 | J126: 1052.7355 | L126: 2.05 | M126: 7380 | N126: 1010.717007
A127: 22140 | B127: 6.15 | C127: 1199.511011 | D127: -2714.440872 | E127: 20 | F127: 20 | H127: 7440 | I127: 124 | J127: 1053.947491 | L127: 2.066666667 | M127: 7440 | N127: 1011.778196
A128: 22320 | B128: 6.2 | C128: 1200.760204 | D128: -2745.690872 | E128: 20 | F128: 20 | H128: 7500 | I128: 125 | J128: 1055.149757 | L128: 2.083333333 | M128: 7500 | N128: 1012.833568
A129: 22500 | B129: 6.25 | C129: 1201.996922 | D129: -2776.940872 | E129: 20 | F129: 20 | H129: 7560 | I129: 126 | J129: 1056.342452 | L129: 2.1 | M129: 7560 | N129: 1013.883225
A130: 22680 | B130: 6.3 | C130: 1203.221293 | D130: -2808.190872 | E130: 20 | F130: 20 | H130: 7620 | I130: 127 | J130: 1057.525729 | L130: 2.116666667 | M130: 7620 | N130: 1014.927268
A131: 22860 | B131: 6.35 | C131: 1204.433443 | D131: -2839.440872 | E131: 20 | F131: 20 | H131: =60*I131 -> 7680 | I131: 128 | J131: 1058.699734 | L131: 2.133333333 | M131: 7680 | N131: 1015.965794
A132: 23040 | B132: 6.4 | C132: 1205.633497 | D132: -2870.690872 | E132: 20 | F132: =IF(B132<=$C$2,C132,E132) -> 20 | H132: 7740 | I132: =I131+$G$3 -> 129 | J132: =345*LOG(8*I132+1)+$J$3 -> 1059.864611 | L132: 2.15 | M132: 7740 | N132: 1016.998898
A133: =B133*3600 -> 23220 | B133: 6.45 | C133: 1206.821578 | D133: -2901.940872 | E133: =IF(D133<20,20,D133) -> 20 | F133: 20 | H133: 7800 | I133: 130 | J133: 1061.020502 | L133: =M133/3600 -> 2.166666667 | M133: =M132+$K$3*60 -> 7800 | N133: =750*(1-EXP(-3.79553*(L133^0.5)))+170.41*(L133^0.5)+$N$3 -> 1018.026672
A134: 23400 | B134: 6.5 | C134: =1325*(1-0.324*EXP(-0.2*B134)-0.204*EXP(-1.7*B134)-0.472*EXP(-10*B134)) -> 1207.997807 | D134: -2933.190872 | E134: 20 | F134: 20 | H134: 7860 | I134: 131 | J134: 1062.167543 | L134: 2.183333333 | M134: 7860 | N134: 1019.049206
A135: 23580 | B135: 6.55 | C135: 1209.162305 | D135: -2964.440872 | E135: 20 | F135: 20 | H135: 7920 | I135: 132 | J135: 1063.305871 | L135: 2.2 | M135: 7920 | N135: 1020.066586
A136: 23760 | B136: 6.6 | C136: 1210.315192 | D136: -2995.690872 | E136: 20 | F136: 20 | H136: 7980 | I136: 133 | J136: 1064.435615 | L136: 2.216666667 | M136: 7980 | N136: 1021.078898
A137: 23940 | B137: 6.65 | C137: 1211.456584 | D137: -3026.940872 | E137: 20 | F137: 20 | H137: 8040 | I137: 134 | J137: 1065.556904 | L137: 2.233333333 | M137: 8040 | N137: 1022.086223
A138: 24120 | B138: 6.7 | C138: 1212.586598 | D138: -3058.190872 | E138: 20 | F138: 20 | H138: 8100 | I138: 135 | J138: 1066.669864 | L138: 2.25 | M138: 8100 | N138: 1023.088643
A139: 24300 | B139: 6.75 | C139: 1213.705349 | D139: -3089.440872 | E139: 20 | F139: 20 | H139: 8160 | I139: 136 | J139: 1067.774619 | L139: 2.266666667 | M139: 8160 | N139: 1024.086236
A140: 24480 | B140: 6.8 | C140: 1214.81295 | D140: -3120.690872 | E140: 20 | F140: 20 | H140: 8220 | I140: 137 | J140: 1068.871287 | L140: 2.283333333 | M140: 8220 | N140: 1025.079079
A141: 24660 | B141: 6.85 | C141: 1215.909514 | D141: -3151.940872 | E141: 20 | F141: 20 | H141: 8280 | I141: 138 | J141: 1069.959986 | L141: 2.3 | M141: 8280 | N141: 1026.067244
A142: 24840 | B142: 6.9 | C142: 1216.995152 | D142: -3183.190872 | E142: 20 | F142: 20 | H142: 8340 | I142: 139 | J142: 1071.040832 | L142: 2.316666667 | M142: 8340 | N142: 1027.050806
A143: 25020 | B143: 6.95 | C143: 1218.069973 | D143: -3214.440872 | E143: 20 | F143: 20 | H143: 8400 | I143: 140 | J143: 1072.113936 | L143: 2.333333333 | M143: 8400 | N143: 1028.029835
A144: 25200 | B144: 7 | C144: 1219.134088 | D144: -3245.690872 | E144: 20 | F144: 20 | H144: 8460 | I144: 141 | J144: 1073.17941 | L144: 2.35 | M144: 8460 | N144: 1029.004399
A145: 25380 | B145: 7.05 | C145: 1220.187603 | D145: -3276.940872 | E145: 20 | F145: 20 | H145: 8520 | I145: 142 | J145: 1074.23736 | L145: 2.366666667 | M145: 8520 | N145: 1029.974566
H146: 8580 | I146: 143 | J146: 1075.287893 | L146: 2.383333333 | M146: 8580 | N146: 1030.940401
H147: 8640 | I147: 144 | J147: 1076.331111 | L147: 2.4 | M147: 8640 | N147: 1031.901968
H148: 8700 | I148: 145 | J148: 1077.367116 | L148: 2.416666667 | M148: 8700 | N148: 1032.859331
H149: 8760 | I149: 146 | J149: 1078.396006 | L149: 2.433333333 | M149: 8760 | N149: 1033.812549
H150: 8820 | I150: 147 | J150: 1079.41788 | L150: 2.45 | M150: 8820 | N150: 1034.761682
H151: 8880 | I151: 148 | J151: 1080.432831 | L151: 2.466666667 | M151: 8880 | N151: 1035.706788
H152: 8940 | I152: 149 | J152: 1081.440953 | L152: 2.483333333 | M152: 8940 | N152: 1036.647924
H153: 9000 | I153: 150 | J153: 1082.442338 | L153: 2.5 | M153: 9000 | N153: 1037.585145
H154: 9060 | I154: 151 | J154: 1083.437074 | L154: 2.516666667 | M154: 9060 | N154: 1038.518505
H155: 9120 | I155: 152 | J155: 1084.425249 | L155: 2.533333333 | M155: 9120 | N155: 1039.448058
H156: 9180 | I156: 153 | J156: 1085.406951 | L156: 2.55 | M156: 9180 | N156: 1040.373854
H157: 9240 | I157: 154 | J157: 1086.382261 | L157: 2.566666667 | M157: 9240 | N157: 1041.295944
H158: 9300 | I158: 155 | J158: 1087.351265 | L158: 2.583333333 | M158: 9300 | N158: 1042.214379
H159: 9360 | I159: 156 | J159: 1088.314041 | L159: 2.6 | M159: 9360 | N159: 1043.129205
H160: 9420 | I160: 157 | J160: 1089.270671 | L160: 2.616666667 | M160: 9420 | N160: 1044.04047
H161: 9480 | I161: 158 | J161: 1090.221231 | L161: 2.633333333 | M161: 9480 | N161: 1044.948221
H162: 9540 | I162: 159 | J162: 1091.165799 | L162: 2.65 | M162: 9540 | N162: 1045.852502
H163: 9600 | I163: 160 | J163: 1092.10445 | L163: 2.666666667 | M163: 9600 | N163: 1046.753358
H164: 9660 | I164: 161 | J164: 1093.037256 | L164: 2.683333333 | M164: 9660 | N164: 1047.650832
H165: 9720 | I165: 162 | J165: 1093.964292 | L165: 2.7 | M165: 9720 | N165: 1048.544966
H166: 9780 | I166: 163 | J166: 1094.885627 | L166: 2.716666667 | M166: 9780 | N166: 1049.435802
H167: 9840 | I167: 164 | J167: 1095.801331 | L167: 2.733333333 | M167: 9840 | N167: 1050.32338
H168: 9900 | I168: 165 | J168: 1096.711472 | L168: 2.75 | M168: 9900 | N168: 1051.20774
H169: 9960 | I169: 166 | J169: 1097.616118 | L169: 2.766666667 | M169: 9960 | N169: 1052.088921
H170: 10020 | I170: 167 | J170: 1098.515336 | L170: 2.783333333 | M170: 10020 | N170: 1052.966961
H171: 10080 | I171: 168 | J171: 1099.409188 | L171: 2.8 | M171: 10080 | N171: 1053.841898
H172: 10140 | I172: 169 | J172: 1100.29774 | L172: 2.816666667 | M172: 10140 | N172: 1054.713767
H173: 10200 | I173: 170 | J173: 1101.181053 | L173: 2.833333333 | M173: 10200 | N173: 1055.582606
H174: 10260 | I174: 171 | J174: 1102.05919 | L174: 2.85 | M174: 10260 | N174: 1056.448448
H175: 10320 | I175: 172 | J175: 1102.932209 | L175: 2.866666667 | M175: 10320 | N175: 1057.311329
H176: 10380 | I176: 173 | J176: 1103.800172 | L176: 2.883333333 | M176: 10380 | N176: 1058.171282
H177: 10440 | I177: 174 | J177: 1104.663135 | L177: 2.9 | M177: 10440 | N177: 1059.028341
H178: 10500 | I178: 175 | J178: 1105.521157 | L178: 2.916666667 | M178: 10500 | N178: 1059.882537
H179: 10560 | I179: 176 | J179: 1106.374293 | L179: 2.933333333 | M179: 10560 | N179: 1060.733903
H180: 10620 | I180: 177 | J180: 1107.222598 | L180: 2.95 | M180: 10620 | N180: 1061.58247
H181: 10680 | I181: 178 | J181: 1108.066128 | L181: 2.966666667 | M181: 10680 | N181: 1062.428268
H182: 10740 | I182: 179 | J182: 1108.904936 | L182: 2.983333333 | M182: 10740 | N182: 1063.271329
H183: 10800 | I183: 180 | J183: 1109.739073 | L183: 3 | M183: 10800 | N183: 1064.11168
H184: 10860 | I184: 181 | J184: 1110.568593 | L184: 3.016666667 | M184: 10860 | N184: 1064.949352
H185: 10920 | I185: 182 | J185: 1111.393545 | L185: 3.033333333 | M185: 10920 | N185: 1065.784372
H186: 10980 | I186: 183 | J186: 1112.213981 | L186: 3.05 | M186: 10980 | N186: 1066.616769
H187: 11040 | I187: 184 | J187: 1113.029948 | L187: 3.066666667 | M187: 11040 | N187: 1067.44657
H188: 11100 | I188: 185 | J188: 1113.841495 | L188: 3.083333333 | M188: 11100 | N188: 1068.273802
H189: 11160 | I189: 186 | J189: 1114.648671 | L189: 3.1 | M189: 11160 | N189: 1069.098491
H190: 11220 | I190: 187 | J190: 1115.451521 | L190: 3.116666667 | M190: 11220 | N190: 1069.920664
H191: 11280 | I191: 188 | J191: 1116.250092 | L191: 3.133333333 | M191: 11280 | N191: 1070.740345
H192: 11340 | I192: 189 | J192: 1117.04443 | L192: 3.15 | M192: 11340 | N192: 1071.55756
H193: 11400 | I193: 190 | J193: 1117.834579 | L193: 3.166666667 | M193: 11400 | N193: 1072.372334
H194: 11460 | I194: 191 | J194: 1118.620582 | L194: 3.183333333 | M194: 11460 | N194: 1073.184691
H195: =60*I195 -> 11520 | I195: 192 | J195: 1119.402484 | L195: 3.2 | M195: 11520 | N195: 1073.994654
H196: 11580 | I196: =I195+$G$3 -> 193 | J196: =345*LOG(8*I196+1)+$J$3 -> 1120.180327 | L196: 3.216666667 | M196: 11580 | N196: 1074.802247
H197: 11640 | I197: 194 | J197: 1120.954152 | L197: =M197/3600 -> 3.233333333 | M197: =M196+$K$3*60 -> 11640 | N197: =750*(1-EXP(-3.79553*(L197^0.5)))+170.41*(L197^0.5)+$N$3 -> 1075.607493
H198: 11700 | I198: 195 | J198: 1121.724002 | L198: 3.25 | M198: 11700 | N198: 1076.410414
H199: 11760 | I199: 196 | J199: 1122.489916 | L199: 3.266666667 | M199: 11760 | N199: 1077.211033
H200: 11820 | I200: 197 | J200: 1123.251934 | L200: 3.283333333 | M200: 11820 | N200: 1078.009372
... 283 more rows

Sheet Variable Diagram
